fUST/lending_fUST_20260107
["ID","MTS","AMOUNT","RATE_DAILY","PERIOD"]
[400567549,1767725448315,-151.0,0.00029965,7]
[400567550,1767725448324,-151.0,0.00029965,7]
[400567551,1767725448334,-151.0,0.00029965,7]
[400567552,1767725448344,-151.0,0.00029965,7]
[400567553,1767725448353,-222.545523,0.00029965,7]
[400567554,1767725448362,-151.0,0.00029965,7]
[400567555,1767725448371,-177.372841,0.00029965,7]
[400567556,1767725448380,-409.150764,0.00029965,7]
[400567557,1767725448389,-409.150764,0.00029965,7]
[400567558,1767725448398,-409.150764,0.00029965,7]
[400567559,1767725448408,-409.150764,0.00029965,7]
[400567560,1767725448418,-38000.0,0.00029974,10]
[400567561,1767725448427,-153.811128,0.00029974,7]
[400567562,1767725448436,-152.80579,0.00029982,7]
[400567563,1767725448445,-151.0,0.00029982,7]
[400567564,1767725448454,-38000.0,0.00029982,10]
[400567565,1767725448463,-38000.0,0.00029991,10]
[400567566,1767725448473,-281.0,0.0003,2]
[400567567,1767725448482,-38000.0,0.0003,10]
[400567568,1767725448490,-412.68505795,0.0003,10]
[400567569,1767725448499,-205.02791284,0.0003,30]
[400567570,1767725448508,-1539.161054,0.0003,7]
[400567571,1767725448517,-17929.07697112,0.0003,2]
[400567572,1767725448527,-684.43602892,0.0003,30]
[400567573,1767725448536,-1125.0,0.0003,5]
[400567574,1767725448545,-165.46,0.0003,5]
[400567575,1767725448555,-300.0,0.0003,60]
[400567576,1767725448565,-269.64837879,0.0003,2]
[400567577,1767725448575,-6092.02511956,0.0003,7]
[400567578,1767725448585,-250.0,0.0003,10]
[400567579,1767725448595,-1019.0,0.0003,7]
[400567580,1767725448604,-257.86,0.0003,7]
[400567581,1767725448613,-240.04,0.0003,7]
[400567582,1767725448623,-2328.61,0.000301,14]
[400567583,1767725448631,-2874.83428113,0.000301,7]
[400567584,1767725448640,-22020.13,0.000301,2]
[400567585,1767725448649,-250.0,0.000301,10]
[400567586,1767725448658,-168.0,0.00030128,2]
[400567587,1767725448667,-1825.86,0.00030136,6]
[400567588,1767725448676,-1150.0,0.00030137,5]
[400567589,1767725448686,-650.0,0.00030137,5]
[400567590,1767725448695,-650.0,0.00030137,5]
[400567591,1767725448705,-261.65588748,0.00030137,120]
[400567592,1767725448714,-250.0,0.000302,10]
[400567593,1767725448723,-566.0,0.00030205,14]
[400567594,1767725448732,-209.1906684,0.00030243,2]
[400567595,1767725448741,-11034.61992398,0.00030287,2]
[400567596,1767725448751,-250.0,0.000303,10]
[400567597,1767725448760,-168.0,0.00030301,2]
[400567598,1767725448769,-595.37131296,0.00030302,2]
[400567599,1767725448778,-2876.18991768,0.00030302,2]
[400567600,1767725448787,-1157.6782999,0.00030327,30]
[400567601,1767725448798,-2000.0,0.00030364,7]
[400567602,1767725448808,-5578.25225134,0.0003038,2]
[400567603,1767725448816,-250.0,0.000304,10]
[400567604,1767725448826,-168.0,0.00030462,2]
[400567605,1767725448838,-1000.0,0.00030488,30]
[400567606,1767725448846,-1000.0,0.00030488,30]
[400567607,1767725448855,-579.0,0.00030488,30]
[400567608,1767725448865,-366.171963,0.000305,10]
[400567609,1767725448877,-2394.34214564,0.00030501,5]
[400567610,1767725448886,-1694.94391133,0.00030501,5]
[400567611,1767725448895,-6772.99586969,0.00030501,5]
[400567612,1767725448904,-168.0,0.00030513,2]
[400567613,1767725448914,-184.3704767,0.00030575,30]
[400567614,1767725448923,-168.0,0.00030576,2]
[400567615,1767725448933,-410.89,0.000306,2]
[400567616,1767725448942,-213.104,0.00030636,26]
[400567617,1767725448951,-184.7045463,0.00030636,26]
[400567618,1767725448960,-1297.73266776,0.00030685,5]
[400567619,1767725448970,-750.0,0.00030685,5]
[400567620,1767725448979,-750.0,0.00030685,5]
[400567621,1767725448989,-168.0,0.00030702,2]
[400567622,1767725448998,-379.31,0.0003074,2]
[400567623,1767725449007,-168.0,0.00030767,2]
[400567624,1767725449015,-151.0,0.00030838,4]
[400567625,1767725449025,-617.40005154,0.0003085,2]
[400567626,1767725449034,-2982.60894464,0.0003085,2]
[400567627,1767725449044,-168.0,0.00030868,2]
[400567628,1767725449054,-2000.0,0.00030871,7]
[400567629,1767725449063,-168.0,0.00030879,2]
[400567630,1767725449072,-168.0,0.00030956,2]
[400567631,1767725449081,-896.69,0.00030958,30]
[400567632,1767725449090,-305.95748553,0.0003099,2]
[400567633,1767725449099,-194.20318295,0.00031,120]
[400567634,1767725449108,-183.06592027,0.00031,120]
[400567635,1767725449117,-172.33135591,0.00031,120]
[400567636,1767725449127,-273.72183838,0.00031,120]
[400567637,1767725449136,-163.4725449,0.00031,120]
[400567638,1767725449146,-198.36643638,0.00031,120]
[400567639,1767725449156,-297.70914997,0.00031,120]
[400567640,1767725449165,-163.65081324,0.00031,120]
[400567641,1767725449174,-203.06425059,0.00031,120]
[400567642,1767725449183,-1909.38063645,0.00031,120]
[400567643,1767725449193,-6059.60285396,0.00031,30]
[400567644,1767725449203,-264.42543527,0.00031,120]
[400567645,1767725449212,-162.07078001,0.00031,120]
[400567646,1767725449222,-178.68711888,0.00031,120]
[400567647,1767725449231,-180.65011172,0.00031,120]
[400567648,1767725449241,-180.06087287,0.00031,120]
[400567649,1767725449251,-185.65429275,0.00031,120]
[400567650,1767725449261,-1019.0,0.00031,7]
[400567651,1767725449271,-564.0,0.00031068,14]
[400567652,1767725449281,-564.0,0.00031068,14]
[400567653,1767725449290,-14320.34037568,0.0003112,2]
[400567654,1767725449300,-2758.74,0.000312,7]
[400567655,1767725449309,-850.0,0.00031233,5]
[400567656,1767725449318,-850.0,0.00031233,5]
[400567657,1767725449327,-466.90501394,0.00031304,2]
[400567658,1767725449337,-2000.0,0.00031378,7]
[400567659,1767725449347,-640.24385345,0.00031398,2]
[400567660,1767725449356,-3092.96547559,0.00031398,2]
[400567661,1767725449366,-2328.61,0.000314,14]
[400567662,1767725449375,-22020.13,0.000314,2]
[400567663,1767725449384,-777.0,0.000314,2]
[400567664,1767725449393,-257.86,0.000314,7]
[400567665,1767725449402,-240.04,0.000314,7]
[400567666,1767725449412,-896.69,0.00031506,31]
[400567667,1767725449421,-1825.86,0.00031506,8]
[400567668,1767725449431,-168.0,0.00031589,2]
[400567669,1767725449441,-11034.61992398,0.00031682,2]
[400567670,1767725449450,-1276.15697568,0.00031746,32]
[400567671,1767725449459,-950.0,0.00031781,5]
[400567672,1767725449468,-424.40376074,0.00031781,5]
[400567673,1767725449477,-2000.0,0.00031885,7]
[400567674,1767725449486,-194.20318295,0.000319,120]
[400567675,1767725449495,-183.06592027,0.000319,120]
[400567676,1767725449504,-172.33135591,0.000319,120]
[400567677,1767725449514,-163.4725449,0.000319,120]
[400567678,1767725449523,-198.36643638,0.000319,120]
[400567679,1767725449533,-297.70914997,0.000319,120]
[400567680,1767725449542,-163.65081324,0.000319,120]
[400567681,1767725449552,-43947.50721516,0.000319,2]
[400567682,1767725449561,-180.06087287,0.000319,120]
[400567683,1767725449571,-185.65429275,0.000319,120]
[400567684,1767725449580,-564.0,0.00031932,14]
[400567685,1767725449589,-663.93287602,0.00031946,2]
[400567686,1767725449599,-3207.40519818,0.00031946,2]
[400567687,1767725449607,-1365.0,0.00031983,2]
[400567688,1767725449617,-2145.0,0.00031983,2]
[400567689,1767725449627,-628.0,0.00031983,2]
[400567690,1767725449636,-417.0,0.00031983,2]
[400567691,1767725449644,-1000.0,0.00032,120]
[400567692,1767725449654,-200.64404451,0.00032,2]
[400567693,1767725449664,-410.89,0.00032,2]
[400567694,1767725449673,-168.0,0.00032003,2]
[400567695,1767725449682,-501.631256,0.00032054,31]
[400567696,1767725449692,-501.631256,0.00032054,31]
[400567697,1767725449701,-501.631256,0.00032054,31]
[400567698,1767725449711,-501.631263,0.00032054,31]
[400567699,1767725449720,-896.69,0.00032054,32]
[400567700,1767725449730,-155.0,0.0003211,51]
[400567701,1767725449740,-500.0,0.0003216,2]
[400567702,1767725449749,-564.0,0.00032219,14]
[400567703,1767725449758,-1050.0,0.00032329,5]
[400567704,1767725449768,-2000.0,0.00032393,7]
[400567705,1767725449779,-2270.0,0.000324,120]
[400567706,1767725449791,-688.49839244,0.00032494,2]
[400567707,1767725449801,-3326.07919052,0.00032494,2]
[400567708,1767725449814,-151.0,0.00032558,5]
[400567709,1767725449823,-2758.74,0.000326,7]
[400567710,1767725449835,-896.69,0.00032602,33]
[400567711,1767725449845,-258.099142,0.00032617,31]
[400567712,1767725449856,-258.099142,0.00032617,31]
[400567713,1767725449865,-258.099142,0.00032617,31]
[400567714,1767725449875,-258.099133,0.00032617,31]
[400567715,1767725449885,-246.520699,0.00032617,31]
[400567716,1767725449894,-246.520699,0.00032617,31]
[400567717,1767725449903,-246.520699,0.00032617,31]
[400567718,1767725449912,-246.520708,0.00032617,31]
[400567719,1767725449921,-151.0,0.00032617,31]
[400567720,1767725449930,-178.486087,0.00032617,31]
[400567721,1767725449939,-151.0,0.00032617,31]
[400567722,1767725449949,-178.486087,0.00032617,31]
[400567723,1767725449958,-178.486087,0.00032617,31]
[400567724,1767725449967,-178.486082,0.00032617,31]
[400567725,1767725449977,-151.0,0.00032617,28]
[400567726,1767725449986,-151.0,0.00032617,28]
[400567727,1767725449995,-618.008304,0.00032617,31]
[400567728,1767725450005,-618.008304,0.00032617,31]
[400567729,1767725450014,-618.008304,0.00032617,31]
[400567730,1767725450023,-618.008305,0.00032617,31]
[400567731,1767725450032,-5000.0,0.00032617,31]
[400567732,1767725450042,-5000.0,0.00032617,31]
[400567733,1767725450053,-5000.0,0.00032617,31]
[400567734,1767725450066,-176.786529,0.00032617,31]
[400567735,1767725450075,-5000.0,0.00032617,31]
[400567736,1767725450084,-176.786529,0.00032617,31]
[400567737,1767725450094,-176.786529,0.00032617,31]
[400567738,1767725450104,-176.786529,0.00032617,31]
[400567739,1767725450113,-151.0,0.00032617,31]
[400567740,1767725450123,-151.0,0.00032617,31]
[400567741,1767725450132,-151.0,0.00032617,31]
[400567742,1767725450141,-151.0,0.00032617,31]
[400567743,1767725450260,-151.0,0.00032617,31]
[400567744,1767725450270,-151.0,0.00032617,31]
[400567745,1767725450281,-168.077679,0.00032668,60]
[400567746,1767725450290,-5578.25225134,0.00032674,2]
[400567747,1767725450299,-564.0,0.00032795,14]
[400567748,1767725450309,-22020.13,0.000328,2]
[400567749,1767725450318,-205.8638811,0.00032849,2]
[400567750,1767725450328,-151.0,0.00032864,31]
[400567751,1767725450337,-151.0,0.00032864,31]
[400567752,1767725450347,-199.109575,0.00032864,31]
[400567753,1767725450356,-151.0,0.00032864,31]
[400567754,1767725450366,-151.0,0.00032864,31]
[400567755,1767725450375,-151.0,0.00032864,31]
[400567756,1767725450385,-151.0,0.00032864,31]
[400567757,1767725450394,-262.890712,0.00032864,31]
[400567758,1767725450403,-166.442051,0.00032864,31]
[400567759,1767725450413,-166.442051,0.00032864,31]
[400567760,1767725450423,-166.442051,0.00032864,31]
[400567761,1767725450432,-166.442051,0.00032864,31]
[400567762,1767725450442,-151.0,0.00032864,31]
[400567763,1767725450451,-655.31642,0.00032864,31]
[400567764,1767725450461,-655.31642,0.00032864,31]
[400567765,1767725450470,-655.31642,0.00032864,31]
[400567766,1767725450479,-655.31642,0.00032864,31]
[400567767,1767725450489,-151.0,0.00032864,31]
[400567768,1767725450498,-244.094588,0.00032864,31]
[400567769,1767725450508,-151.0,0.00032864,31]
[400567770,1767725450517,-213.83934,0.00032864,31]
[400567771,1767725450527,-273.427612,0.00032864,31]
[400567772,1767725450536,-151.0,0.00032864,31]
[400567773,1767725450545,-301.382551,0.00032864,31]
[400567774,1767725450555,-151.0,0.00032864,31]
[400567775,1767725450565,-409.150764,0.00032864,31]
[400567776,1767725450574,-409.150764,0.00032864,31]
[400567777,1767725450583,-409.150764,0.00032864,31]
[400567778,1767725450593,-409.15076,0.00032864,31]
[400567779,1767725450602,-151.0,0.00032876,31]
[400567780,1767725450612,-151.0,0.00032876,31]
[400567781,1767725450622,-194.712966,0.00032876,31]
[400567782,1767725450632,-194.712966,0.00032876,31]
[400567783,1767725450641,-194.712966,0.00032876,31]
[400567784,1767725450651,-194.712974,0.00032876,31]
[400567785,1767725450661,-151.0,0.00032876,31]
[400567786,1767725450670,-151.0,0.00032876,31]
[400567787,1767725450679,-151.0,0.00032876,31]
[400567788,1767725450688,-151.0,0.00032876,31]
[400567789,1767725450699,-151.0,0.00032876,31]
[400567790,1767725450708,-151.0,0.00032876,31]
[400567791,1767725450717,-251.543708,0.00032876,31]
[400567792,1767725450728,-251.543708,0.00032876,31]
[400567793,1767725450738,-251.543708,0.00032876,31]
[400567794,1767725450747,-251.543708,0.00032876,31]
[400567795,1767725450757,-151.0,0.00032876,31]
[400567796,1767725450767,-151.0,0.00032876,31]
[400567797,1767725450776,-151.0,0.00032876,31]
[400567798,1767725450786,-164.608793,0.00032876,31]
[400567799,1767725450800,-1758.81,0.00032876,120]
[400567800,1767725450812,-1825.86,0.00032876,120]
[400567801,1767725450821,-151.0,0.00032877,31]
[400567802,1767725450831,-151.0,0.00032877,31]
[400567803,1767725450840,-151.0,0.00032877,31]
[400567804,1767725450850,-268.05037,0.00032877,31]
[400567805,1767725450860,-6369.63,0.00032877,10]
[400567806,1767725450870,-11245.41,0.00032877,10]
[400567807,1767725450880,-9371.18,0.00032877,10]
[400567808,1767725450889,-7809.31,0.00032877,10]
[400567809,1767725450898,-500.0,0.00032877,5]
[400567810,1767725450908,-1150.0,0.00032877,5]
[400567811,1767725450917,-500.0,0.00032877,7]
[400567812,1767725450927,-500.0,0.00032877,7]
[400567813,1767725450936,-500.0,0.00032877,7]
[400567814,1767725450945,-500.0,0.00032877,7]
[400567815,1767725450954,-500.0,0.00032877,7]
[400567816,1767725450964,-500.0,0.00032877,7]
[400567817,1767725450974,-500.0,0.00032877,7]
[400567818,1767725450983,-500.0,0.00032877,7]
[400567819,1767725450992,-500.0,0.00032877,7]
[400567820,1767725451002,-541.79744446,0.00032877,7]
[400567821,1767725451011,-500.0,0.00032877,7]
[400567822,1767725451020,-1235.12677463,0.00032885,120]
[400567823,1767725451029,-2000.0,0.000329,7]
[400567824,1767725451039,-163.4725449,0.000329,120]
[400567825,1767725451058,-198.36643638,0.000329,120]
[400567826,1767725451068,-297.70914997,0.000329,120]
[400567827,1767725451077,-185.65429275,0.000329,120]
[400567828,1767725451087,-1758.81,0.00032904,120]
[400567829,1767725451096,-2000.0,0.00032926,15]
[400567830,1767725451106,-1758.81,0.00032931,120]
[400567831,1767725451114,-1758.81,0.00032958,120]
[400567832,1767725451124,-1758.81,0.00032986,120]
[400567833,1767725451133,-4181.40895331,0.00033,120]
[400567834,1767725451142,-1760.41887495,0.00033,4]
[400567835,1767725451152,-44357.83912315,0.00033,20]
[400567836,1767725451161,-2328.61,0.00033,30]
[400567837,1767725451170,-1758.81,0.00033013,120]
[400567838,1767725451179,-209.1906684,0.00033024,2]
[400567839,1767725451188,-1758.81,0.00033041,120]
[400567840,1767725451198,-713.97283296,0.00033042,2]
[400567841,1767725451207,-3449.14412057,0.00033042,2]
[400567842,1767725451216,-1758.81,0.00033068,120]
[400567843,1767725451225,-11034.61992398,0.00033077,2]
[400567844,1767725451234,-1758.81,0.00033095,120]
[400567845,1767725451244,-151.0,0.000331,31]
[400567846,1767725451254,-1758.81,0.00033123,120]
[400567847,1767725451263,-1758.81,0.0003315,120]
[400567848,1767725451272,-896.69,0.0003315,34]
[400567849,1767725451281,-1398.94630178,0.00033164,34]
[400567850,1767725451291,-1758.81,0.00033178,120]
[400567851,1767725451300,-492.22675487,0.000332,117]
[400567852,1767725451310,-492.22675486,0.000332,117]
[400567853,1767725451319,-492.22675486,0.000332,117]
[400567854,1767725451328,-492.22675486,0.000332,117]
[400567855,1767725451337,-1758.81,0.00033205,120]
[400567856,1767725451347,-1758.81,0.00033232,120]
[400567857,1767725451356,-1758.81,0.0003326,120]
[400567858,1767725451365,-1758.81,0.00033287,120]
[400567859,1767725451374,-498.98245764,0.00033303,120]
[400567860,1767725451383,-1758.81,0.00033315,120]
[400567861,1767725451393,-1758.81,0.00033342,120]
[400567862,1767725451402,-1758.81,0.00033369,120]
[400567863,1767725451411,-564.0,0.0003337,30]
[400567864,1767725451421,-1758.81,0.00033397,120]
[400567865,1767725451430,-2000.0,0.00033407,7]
[400567866,1767725451439,-1758.81,0.00033424,120]
[400567867,1767725451448,-274.48957796,0.00033425,5]
[400567868,1767725451457,-1250.0,0.00033425,5]
[400567869,1767725451466,-1758.81,0.00033452,120]
[400567870,1767725451475,-1758.81,0.00033479,120]
[400567871,1767725451484,-410.89,0.000335,2]
[400567872,1767725451494,-1758.91256973,0.00033506,120]
[400567873,1767725451503,-1000.0,0.00033537,30]
[400567874,1767725451512,-1000.0,0.00033537,30]
[400567875,1767725451522,-598.0,0.00033537,30]
[400567876,1767725451531,-740.38982778,0.0003359,2]
[400567877,1767725451540,-3576.76245303,0.0003359,2]
[400567878,1767725451548,-564.0,0.00033658,30]
[400567879,1767725451557,-896.69,0.00033698,35]
[400567880,1767725451566,-210.0,0.00033699,5]
[400567881,1767725451575,-418.5616,0.000338,10]
[400567882,1767725451585,-163.4725449,0.000339,120]
[400567883,1767725451594,-198.36643638,0.000339,120]
[400567884,1767725451604,-297.70914997,0.000339,120]
[400567885,1767725451613,-2724.453066,0.000339,19]
[400567886,1767725451622,-2000.0,0.00033914,7]
[400567887,1767725451631,-1350.0,0.00033973,5]
[400567888,1767725451640,-1000.0,0.00034,120]
[400567889,1767725451649,-1032.9531429,0.00034,2]
[400567890,1767725451662,-257.86,0.00034,7]
[400567891,1767725451671,-240.04,0.00034,7]
[400567892,1767725451681,-767.7842514,0.00034138,2]
[400567893,1767725451690,-3709.10266379,0.00034138,2]
[400567894,1767725451699,-896.69,0.00034246,36]
[400567895,1767725451708,-1825.86,0.00034246,120]
[400567896,1767725451719,-151.0,0.00034279,6]
[400567897,1767725451728,-2328.61,0.000343,30]
[400567898,1767725451738,-1500.0,0.000344,19]
[400567899,1767725451747,-2000.0,0.00034421,7]
[400567900,1767725451757,-11034.61992398,0.00034472,2]
[400567901,1767725451766,-564.0,0.00034521,30]
[400567902,1767725451775,-270.0,0.00034521,5]
[400567903,1767725451786,-278.71322358,0.00034521,5]
[400567904,1767725451796,-564.0,0.00034521,30]
[400567905,1767725451807,-600.0,0.0003456,2]
[400567906,1767725451816,-1525.89994015,0.00034583,36]
[400567907,1767725451826,-801784.34195959,0.0003465,4]
[400567908,1767725452085,-4014.26165727,0.00016526,2]
[400567909,1767725452458,-1041.66666667,0.00015805,2]
[400567910,1767725452467,-197.12355878,0.00016166,2]
[400567911,1767725452476,-1461.40892346,0.00016526,2]
[400567912,1767725453685,-15504.84552996,0.00016526,2]
[400567913,1767725453703,-9196.3,0.00016526,2]
[400567914,1767725453717,-11736.93499854,0.00016526,2]
[400567915,1767725453735,-1607.03640909,0.00016526,2]
[400567945,1767725555966,161.33,5.919e-05,2]
[400567946,1767725556217,215.1,6.176e-05,2]
[400567947,1767725556637,268.88,6.433e-05,2]
[400567948,1767725557544,322.65,6.691e-05,2]
[400567949,1767725557978,376.43,6.948e-05,2]
[400567950,1767725558420,430.21,7.205e-05,2]
[400567951,1767725558834,483.98,7.463e-05,2]
[400567952,1767725559258,537.76,7.72e-05,2]
[400567954,1767725686585,155.0,8.3e-07,2]
[400567955,1767725687612,155.0,8.3e-07,2]
[400567956,1767725688637,155.0,8.3e-07,2]
[400567958,1767725707581,-226.85,9.562e-05,2]
[400567959,1767725707605,-340.27,9.997e-05,2]
[400567960,1767725707628,-66.47006894,0.00010432,2]
[400567961,1767725711970,-387.22993106,0.00010432,2]
[400567962,1767725711994,-139.44734043,0.00010866,2]
[400567964,1767725716388,-194.604636,0.00010866,2]
[400567965,1767725719205,-233.06802357,0.00010866,2]
[400567966,1767725719230,-73.17034376,0.00011301,2]
[400567967,1767725721250,-197.98311419,0.00011301,2]
[400567968,1767725723843,-255.45806304,0.00011188,2]
[400567969,1767725726264,-157.17890079,0.00011188,2]
[400568084,1767725780777,175.86,9.11e-05,2]
[400568085,1767725783497,-241.56786233,9.544e-05,2]
[400568086,1767725784941,-110.15213767,9.544e-05,2]
[400568087,1767725784966,-205.20326364,9.978e-05,2]
[400568088,1767725788298,-212.26647695,9.978e-05,2]
[400568090,1767725790018,-110.11025941,9.978e-05,2]
[400568091,1767725790040,-113.41457733,0.00010412,2]
[400568094,1767725791539,-205.10608061,0.00010412,2]
[400568095,1767725795254,-155.84241914,0.00010412,2]
[400568096,1767725796796,-229.07692292,0.00010412,2]
[400568097,1767725796819,-168.85366272,0.00010845,2]
[400568098,1767725799453,-151.06853535,0.00010845,2]
[400568099,1767725800987,-233.93941436,0.00010845,2]
[400568108,1767725862100,227.28,8.004e-05,2]
[400568109,1767725862527,454.57,8.385e-05,2]
[400568110,1767725862961,681.85,8.767e-05,2]
[400568111,1767725863386,909.13,9.148e-05,2]
[400568112,1767725872387,-378.44058564,9.529e-05,2]
[400568113,1767725874475,-300.0,9.529e-05,2]
[400568114,1767725878411,-173.31164079,9.529e-05,2]
[400568115,1767725879946,-200.12659503,9.529e-05,2]
[400568116,1767725881986,-84.54117854,9.529e-05,2]
[400568117,1767725882010,-200.0683689,9.91e-05,2]
[400568118,1767725883403,-180.74,9.91e-05,2]
[400568119,1767725885403,-153.6883592,9.91e-05,2]
[400568120,1767725886864,-449.2235523,9.91e-05,2]
[400568121,1767725889491,-379.9797196,9.91e-05,2]
[400568122,1767725889516,-28.2802804,0.00010291,2]
[400568123,1767725890998,-542.78154868,0.00010291,2]
[400568124,1767725892821,-205.14083363,0.00010291,2]
[400568125,1767725894341,-356.59548877,0.00010291,2]
[400568126,1767725895889,-184.56677848,0.00010291,2]
[400568127,1767725897926,-190.24748996,0.00010291,2]
[400568128,1767725901040,-83.36758008,0.00010291,2]
[400568129,1767725901064,-268.19783007,0.00010672,2]
[400568130,1767725902893,-310.90151609,0.00010672,2]
[400568133,1767725906070,-435.57414143,0.00010672,2]
[400568134,1767725908928,-248.71936031,0.00010672,2]
[400568135,1767725912099,-155.11869083,0.00010672,2]
[400568136,1767725914957,-275.79863324,0.00010672,2]
[400568137,1767725932411,-231.87954565,0.00010565,2]
[400568138,1767725934119,-335.56525831,0.00010565,2]
[400568139,1767725936812,-163.04901972,0.00010565,2]
[400568140,1767725939034,-647.19575968,0.00010565,2]
[400568141,1767725941180,-155.7208026,0.00010565,2]
[400568143,1767725942013,293.68,7.751e-05,2]
[400568144,1767725942441,440.53,8.103e-05,2]
[400568145,1767725942696,-256.87063203,0.00010565,2]
[400568146,1767725942870,587.37,8.456e-05,2]
[400568147,1767725943268,734.21,8.808e-05,2]
[400568148,1767725943697,881.05,9.16e-05,2]
[400568149,1767725947890,-419.81932984,9.513e-05,2]
[400568150,1767725952827,-608.08067016,9.513e-05,2]
[400568151,1767725952849,-45.52294332,9.865e-05,2]
[400568152,1767725954998,-348.52789711,9.865e-05,2]
[400568153,1767725957117,-342.87325689,9.865e-05,2]
[400568154,1767725959750,-160.77133971,9.865e-05,2]
[400568155,1767725964054,-183.62973837,9.865e-05,2]
[400568156,1767725966381,-93.4148246,9.865e-05,2]
[400568157,1767725966405,-384.74331293,0.00010217,2]
[400568158,1767725968645,-642.48941436,0.00010217,2]
[400568159,1767725970194,-208.23196804,0.00010217,2]
[400568160,1767725973308,-86.11530467,0.00010217,2]
[400568161,1767725973333,-154.23780499,0.00010565,2]
[400568162,1767725975427,-306.01770426,0.00010565,2]
[400568163,1767725978139,-397.87887035,0.00010565,2]
[400568165,1767725981210,-397.43653537,0.00010565,2]
[400568166,1767725983818,-559.73378036,0.00010565,2]
[400568173,1767726007461,-166.74711218,0.0001016,2]
[400568174,1767726009452,-42.44355652,0.0001016,2]
[400568175,1767726009475,-180.0363153,0.0001016,2]
[400568176,1767726012885,-300.0,0.0001016,2]
[400568177,1767726019858,231.34,7.401e-05,2]
[400568178,1767726020309,462.67,7.754e-05,2]
[400568179,1767726020756,694.01,8.106e-05,2]
[400568180,1767726021175,925.34,8.458e-05,2]
[400568181,1767726022094,1156.68,8.811e-05,2]
[400568182,1767726022512,1320.3,9.163e-05,2]
[400568183,1767726022537,67.71,9.163e-05,2]
[400568184,1767726039028,-190.34731118,9.516e-05,2]
[400568185,1767726041314,-184.26073351,9.516e-05,2]
[400568186,1767726044600,-357.8291785,9.516e-05,2]
[400568187,1767726046882,-235.25906959,9.516e-05,2]
[400568188,1767726049464,-221.67868038,9.516e-05,2]
[400568189,1767726052784,-333.33333334,9.516e-05,2]
[400568190,1767726054922,-96.6416935,9.516e-05,2]
[400568191,1767726054949,-300.86380656,9.868e-05,2]
[400568192,1767726057605,-462.77222048,9.868e-05,2]
[400568193,1767726059658,-311.46308135,9.868e-05,2]
[400568194,1767726061781,-194.6471544,9.868e-05,2]
[400568196,1767726063844,-183.5603008,9.868e-05,2]
[400568197,1767726065381,-283.4228456,9.868e-05,2]
[400568198,1767726067971,-113.96059081,9.868e-05,2]
[400568199,1767726067997,-81.9636847,0.0001016,2]
[400568200,1767726068022,-188.71847623,0.00010221,2]
[400568201,1767726070593,-300.0,0.00010221,2]
[400568202,1767726072130,-185.97107347,0.00010221,2]
[400568203,1767726073697,-330.24005058,0.00010221,2]
[400568207,1767726112486,-210.73383476,9.632e-05,2]
[400568209,1767726127353,-598.6617561,9.536e-05,2]
[400568210,1767726129984,-166.66666668,9.536e-05,2]
[400568211,1767726132169,-207.33617055,9.536e-05,2]
[400568212,1767726135274,-264.53742163,9.536e-05,2]
[400568213,1767726136778,-334.12433447,9.536e-05,2]
[400568215,1767726172391,-524.8653056,9.441e-05,2]
[400568217,1767726183661,219.74,7.783e-05,2]
[400568218,1767726184090,329.61,8.137e-05,2]
[400568219,1767726184523,439.48,8.491e-05,2]
[400568220,1767726184945,549.35,8.844e-05,2]
[400568221,1767726185398,659.22,9.198e-05,2]
[400568224,1767726265533,163.81,8.461e-05,2]